fUST/lending_fUST_20250111
["ID","MTS","AMOUNT","RATE_DAILY","PERIOD"]
[348435372,1736527845153,-500.0,0.00022739,3]
[348435374,1736527845163,-500.0,0.00022739,3]
[348435376,1736527845172,-500.0,0.00022739,3]
[348435378,1736527845183,-500.0,0.00022739,3]
[348435380,1736527845192,-500.0,0.00022739,3]
[348435382,1736527845202,-500.0,0.00022739,3]
[348435384,1736527845211,-513.20398514,0.00022739,3]
[348435386,1736527845221,-672.64,0.00022739,3]
[348435388,1736527845231,-500.0,0.00022739,3]
[348435390,1736527845240,-1756.02,0.00022739,3]
[348435392,1736527845249,-500.0,0.00022739,3]
[348435394,1736527845259,-600.44,0.00022739,3]
[348435396,1736527845268,-500.0,0.00022739,3]
[348435398,1736527845277,-500.0,0.00022739,3]
[348435400,1736527845287,-500.0,0.00022739,3]
[348435402,1736527845297,-500.0,0.00022739,3]
[348435404,1736527845306,-654.9,0.00022739,3]
[348435406,1736527845316,-515.73,0.00022739,3]
[348435408,1736527845326,-500.0,0.00022739,3]
[348435410,1736527845336,-3161.45,0.00022739,3]
[348435412,1736527845345,-500.0,0.00022739,3]
[348435414,1736527845355,-500.0,0.00022739,3]
[348435416,1736527845364,-500.0,0.00022739,3]
[348435418,1736527845373,-3561.05,0.00022739,3]
[348435419,1736527845384,-1222.94,0.00022739,3]
[348435421,1736527845393,-721.69,0.00022739,3]
[348435423,1736527845403,-778.21,0.00022739,2]
[348435425,1736527845413,-1560.23,0.00022739,3]
[348435427,1736527845422,-1763.22,0.00022739,3]
[348435429,1736527845433,-698.96,0.00022739,3]
[348435431,1736527845443,-1421.79,0.00022739,3]
[348435433,1736527845452,-500.0,0.00022739,3]
[348435435,1736527845461,-562.09,0.00022739,3]
[348435437,1736527845472,-1666.59,0.00022739,3]
[348435439,1736527845481,-500.0,0.00022739,3]
[348435441,1736527845490,-960.21,0.00022739,3]
[348435443,1736527845500,-500.0,0.00022739,3]
[348435445,1736527845510,-1197.79,0.00022739,3]
[348435447,1736527845520,-500.0,0.00022739,3]
[348435449,1736527845529,-713.71,0.00022739,3]
[348435451,1736527845539,-500.0,0.00022739,3]
[348435452,1736527845548,-500.0,0.00022773,2]
[348435454,1736527845557,-11609.05,0.000228,2]
[348435456,1736527845566,-1200.0,0.00022845,2]
[348435458,1736527845576,-39663.24046825,0.0002287,2]
[348435460,1736527845586,-2711.02011588,0.00022913,2]
[348435462,1736527845596,-222.58071285,0.00022939,2]
[348435464,1736527845606,-2711.02011582,0.00022964,2]
[348435466,1736527845616,-6147.3247372,0.00023,2]
[348435468,1736527845625,-1000.0,0.00023,23]
[348435470,1736527845634,-1000.0,0.00023,4]
[348435472,1736527845644,-244.07265463,0.00023,2]
[348435474,1736527845655,-33535.49625602,0.00023,2]
[348435476,1736527845664,-261.51637131,0.00023,2]
[348435478,1736527845673,-7438.69753278,0.00023,3]
[348435479,1736527845683,-3975.89364532,0.00023,2]
[348435481,1736527845694,-500.0,0.00023013,3]
[348435483,1736527845703,-500.0,0.00023013,3]
[348435485,1736527845713,-500.0,0.00023013,3]
[348435488,1736527845723,-500.0,0.00023013,3]
[348435490,1736527845732,-514.98862569,0.00023013,3]
[348435492,1736527845742,-500.0,0.00023013,3]
[348435494,1736527845752,-500.0,0.00023013,3]
[348435496,1736527845762,-500.0,0.00023013,3]
[348435498,1736527845771,-500.0,0.00023013,3]
[348435500,1736527845781,-7138.33,0.00023013,3]
[348435502,1736527845792,-504.83556762,0.00023013,3]
[348435504,1736527845802,-500.0,0.00023013,3]
[348435505,1736527845811,-500.0,0.00023013,3]
[348435507,1736527845821,-841.63,0.00023013,3]
[348435509,1736527845831,-500.0,0.00023013,3]
[348435511,1736527845841,-500.0,0.00023013,3]
[348435513,1736527845850,-500.0,0.00023013,3]
[348435515,1736527845860,-396.02622332,0.00023013,3]
[348435517,1736527845869,-4041.71,0.00023013,3]
[348435519,1736527845879,-504.77458857,0.00023013,3]
[348435521,1736527845889,-500.0,0.00023013,3]
[348435523,1736527845898,-500.0,0.00023013,3]
[348435525,1736527845907,-500.0,0.00023013,3]
[348435527,1736527845917,-500.0,0.00023013,3]
[348435529,1736527845929,-514.19243343,0.00023013,3]
[348435530,1736527845939,-500.0,0.00023013,3]
[348435532,1736527845949,-500.0,0.00023013,3]
[348435534,1736527845958,-737.56,0.00023013,3]
[348435536,1736527845968,-500.0,0.00023013,3]
[348435538,1736527845979,-567.64,0.00023013,3]
[348435540,1736527845988,-500.0,0.00023013,3]
[348435542,1736527845997,-500.0,0.00023013,3]
[348435544,1736527846009,-500.0,0.00023013,3]
[348435546,1736527846018,-500.0,0.00023013,3]
[348435548,1736527846028,-500.0,0.00023013,3]
[348435550,1736527846038,-570.59,0.00023013,3]
[348435552,1736527846047,-1412.2,0.00023013,3]
[348435554,1736527846056,-500.0,0.00023013,3]
[348435555,1736527846066,-500.0,0.00023013,3]
[348435557,1736527846075,-506.17,0.00023013,3]
[348435559,1736527846085,-507.39483569,0.00023013,3]
[348435561,1736527846094,-500.0,0.00023013,3]
[348435563,1736527846104,-500.0,0.00023013,3]
[348435565,1736527846114,-500.0,0.00023013,3]
[348435567,1736527846123,-500.0,0.00023013,3]
[348435569,1736527846132,-500.0,0.00023013,3]
[348435571,1736527846141,-523.16,0.00023013,3]
[348435573,1736527846150,-500.0,0.00023013,3]
[348435574,1736527846160,-594.07,0.00023013,3]
[348435576,1736527846170,-500.0,0.00023013,3]
[348435578,1736527846180,-999.08,0.00023013,3]
[348435580,1736527846189,-798.93,0.00023013,3]
[348435582,1736527846198,-231.28910299,0.00023013,3]
[348435584,1736527846208,-760.94,0.00023013,3]
[348435586,1736527846218,-1375.42,0.00023013,3]
[348435588,1736527846228,-269.99941571,0.00023013,3]
[348435590,1736527846237,-500.0,0.00023013,3]
[348435592,1736527846247,-500.0,0.00023013,3]
[348435594,1736527846257,-558.14,0.00023013,3]
[348435596,1736527846268,-500.0,0.00023013,3]
[348435598,1736527846277,-500.0,0.00023013,3]
[348435600,1736527846287,-500.0,0.00023013,3]
[348435601,1736527846296,-500.0,0.00023013,3]
[348435603,1736527846307,-1231.21,0.00023013,3]
[348435605,1736527846315,-500.0,0.00023013,3]
[348435607,1736527846325,-785.55,0.00023013,3]
[348435609,1736527846334,-500.0,0.00023013,3]
[348435611,1736527846343,-1449.04,0.00023013,3]
[348435613,1736527846352,-324.5353335,0.00023013,3]
[348435615,1736527846362,-500.0,0.00023013,3]
[348435618,1736527846371,-500.0,0.00023013,3]
[348435621,1736527846382,-500.0,0.00023013,3]
[348435623,1736527846392,-500.0,0.00023013,3]
[348435625,1736527846401,-500.0,0.00023013,3]
[348435627,1736527846411,-687.61,0.00023013,3]
[348435628,1736527846422,-9734.87,0.00023013,3]
[348435630,1736527846432,-500.0,0.00023013,3]
[348435632,1736527846441,-515.2948383,0.00023013,3]
[348435634,1736527846451,-500.0,0.00023013,3]
[348435636,1736527846460,-500.0,0.00023013,3]
[348435638,1736527846470,-1377.2,0.00023013,3]
[348435640,1736527846480,-500.0,0.00023013,3]
[348435642,1736527846490,-500.0,0.00023013,3]
[348435644,1736527846500,-795.27,0.00023013,3]
[348435646,1736527846511,-500.0,0.00023013,3]
[348435648,1736527846520,-500.0,0.00023013,3]
[348435650,1736527846529,-500.0,0.00023013,3]
[348435652,1736527846539,-500.0,0.00023013,3]
[348435653,1736527846548,-569.76,0.00023013,3]
[348435655,1736527846558,-500.0,0.00023013,3]
[348435657,1736527846567,-870.05,0.00023013,3]
[348435659,1736527846577,-500.0,0.00023013,3]
[348435661,1736527846586,-500.0,0.00023013,3]
[348435663,1736527846596,-718.43,0.00023013,3]
[348435665,1736527846606,-523.76,0.00023013,3]
[348435667,1736527846616,-500.0,0.00023013,3]
[348435669,1736527846627,-500.0,0.00023013,3]
[348435671,1736527846637,-1249.38,0.00023013,3]
[348435673,1736527846647,-500.0,0.00023013,3]
[348435675,1736527846657,-500.0,0.00023013,3]
[348435677,1736527846666,-500.0,0.00023013,3]
[348435679,1736527846676,-500.0,0.00023013,3]
[348435681,1736527846686,-500.0,0.00023013,3]
[348435683,1736527846695,-500.0,0.00023013,3]
[348435685,1736527846706,-1089.57,0.00023013,3]
[348435687,1736527846716,-505.65156595,0.00023013,3]
[348435689,1736527846725,-276.70281334,0.00023013,3]
[348435691,1736527846735,-500.0,0.00023013,3]
[348435693,1736527846745,-500.0,0.00023013,3]
[348435695,1736527846754,-500.0,0.00023013,3]
[348435697,1736527846764,-1097.85,0.00023013,3]
[348435699,1736527846774,-500.0,0.00023013,3]
[348435701,1736527846783,-500.0,0.00023013,3]
[348435703,1736527846793,-500.0,0.00023013,3]
[348435705,1736527846803,-500.0,0.00023013,3]
[348435714,1736527846929,-997.27,0.00023013,3]
[348435715,1736527846953,-592.59,0.00023013,3]
[348435716,1736527846963,-735.56,0.00023013,3]
[348435717,1736527846975,-651.69,0.00023013,3]
[348435718,1736527846986,-500.0,0.00023013,3]
[348435719,1736527846996,-500.0,0.00023013,3]
[348435720,1736527847009,-500.0,0.00023013,3]
[348435721,1736527847020,-500.0,0.00023013,3]
[348435722,1736527847030,-500.0,0.00023013,3]
[348435723,1736527847040,-294.62639875,0.00023013,3]
[348435724,1736527847049,-500.0,0.00023013,3]
[348435725,1736527847059,-1868.2,0.00023013,3]
[348435726,1736527847069,-500.0,0.00023013,3]
[348435727,1736527847079,-500.0,0.00023013,3]
[348435728,1736527847089,-577.4155288,0.00023013,3]
[348435729,1736527847099,-883.93,0.00023013,3]
[348435730,1736527847110,-500.0,0.00023013,3]
[348435731,1736527847120,-500.0,0.00023013,3]
[348435733,1736527847129,-3153.67,0.00023013,3]
[348435734,1736527847139,-500.0,0.00023013,3]
[348435736,1736527847149,-500.0,0.00023013,3]
[348435738,1736527847158,-550.55,0.00023013,3]
[348435740,1736527847167,-500.0,0.00023013,3]
[348435742,1736527847177,-500.0,0.00023013,3]
[348435744,1736527847188,-1783.22,0.00023013,2]
[348435746,1736527847199,-500.0,0.00023013,3]
[348435748,1736527847209,-861.35,0.00023013,3]
[348435750,1736527847218,-546.66155026,0.00023013,3]
[348435752,1736527847229,-500.0,0.00023013,3]
[348435754,1736527847239,-500.0,0.00023013,3]
[348435756,1736527847248,-500.0,0.00023013,3]
[348435758,1736527847258,-500.0,0.00023013,3]
[348435760,1736527847267,-4947.78,0.00023013,3]
[348435762,1736527847277,-1451.95,0.00023013,3]
[348435764,1736527847286,-245.02358355,0.00023013,3]
[348435766,1736527847296,-500.0,0.00023013,3]
[348435768,1736527847305,-500.0,0.00023013,3]
[348435770,1736527847315,-46502.3,0.00023013,3]
[348435772,1736527847325,-948.0,0.00023013,3]
[348435774,1736527847335,-500.0,0.00023013,3]
[348435776,1736527847344,-1931.44,0.00023013,3]
[348435778,1736527847359,-1310.93,0.00023013,2]
[348435780,1736527847369,-7971.81,0.00023013,3]
[348435782,1736527847378,-500.0,0.00023013,3]
[348435784,1736527847388,-500.0,0.00023013,3]
[348435786,1736527847398,-1851.49,0.00023013,3]
[348435788,1736527847408,-1188.78,0.00023013,3]
[348435790,1736527847417,-500.0,0.00023013,3]
[348435792,1736527847427,-643.14,0.00023013,3]
[348435794,1736527847437,-500.0,0.00023013,3]
[348435796,1736527847446,-500.0,0.00023013,3]
[348435798,1736527847455,-151.0,0.00023013,2]
[348435800,1736527847465,-1456.65,0.00023013,3]
[348435802,1736527847474,-500.0,0.00023013,3]
[348435804,1736527847484,-151.0,0.00023013,2]
[348435806,1736527847493,-500.0,0.00023013,3]
[348435808,1736527847502,-500.0,0.00023013,3]
[348435810,1736527847512,-500.0,0.00023013,3]
[348435812,1736527847522,-500.0,0.00023013,3]
[348435814,1736527847531,-410.76609354,0.00023013,3]
[348435816,1736527847540,-500.0,0.00023013,3]
[348435818,1736527847549,-500.0,0.00023013,3]
[348435820,1736527847558,-500.0,0.00023013,3]
[348435822,1736527847568,-500.0,0.00023013,3]
[348435824,1736527847579,-500.0,0.00023013,3]
[348435826,1736527847588,-500.0,0.00023013,3]
[348435828,1736527847598,-500.0,0.00023013,3]
[348435830,1736527847607,-672.64,0.00023013,3]
[348435832,1736527847617,-500.0,0.00023013,3]
[348435834,1736527847626,-1756.02,0.00023013,3]
[348435836,1736527847636,-500.0,0.00023013,3]
[348435838,1736527847645,-600.44,0.00023013,3]
[348435839,1736527847654,-500.0,0.00023013,3]
[348435841,1736527847664,-500.0,0.00023013,3]
[348435843,1736527847673,-500.0,0.00023013,3]
[348435845,1736527847682,-654.9,0.00023013,3]
[348435847,1736527847691,-515.73,0.00023013,3]
[348435849,1736527847701,-285.84625237,0.00023013,3]
[348435851,1736527847710,-3161.45,0.00023013,3]
[348435853,1736527847720,-500.0,0.00023013,3]
[348435855,1736527847730,-636.30412198,0.00023013,3]
[348435857,1736527847739,-500.0,0.00023013,3]
[348435859,1736527847749,-3561.05,0.00023013,3]
[348435861,1736527847758,-1222.94,0.00023013,3]
[348435863,1736527847768,-721.69,0.00023013,3]
[348435865,1736527847778,-778.21,0.00023013,2]
[348435867,1736527847787,-1560.23,0.00023013,3]
[348435869,1736527847797,-1763.22,0.00023013,3]
[348435871,1736527847806,-698.96,0.00023013,3]
[348435872,1736527847815,-1421.79,0.00023013,3]
[348435874,1736527847825,-500.0,0.00023013,3]
[348435876,1736527847835,-562.09,0.00023013,3]
[348435878,1736527847844,-1666.59,0.00023013,3]
[348435880,1736527847854,-500.0,0.00023013,3]
[348435882,1736527847864,-960.21,0.00023013,3]
[348435884,1736527847874,-1197.79,0.00023013,3]
[348435886,1736527847883,-500.0,0.00023013,3]
[348435888,1736527847894,-500.0,0.00023013,3]
[348435890,1736527847903,-500.0,0.00023013,3]
[348435892,1736527847914,-713.71,0.00023013,3]
[348435894,1736527847924,-172.0,0.00023014,2]
[348435896,1736527847937,-2711.02011582,0.00023016,2]
[348435898,1736527847947,-1000.0,0.00023021,2]
[348435900,1736527847957,-2711.02011582,0.00023067,2]
[348435902,1736527847967,-2711.02011582,0.00023119,2]
[348435904,1736527847977,-22530.47014231,0.00023136,2]
[348435906,1736527847988,-2711.02011582,0.0002317,2]
[348435908,1736527847999,-2711.02011582,0.00023222,2]
[348435911,1736527848010,-2711.02011582,0.00023273,2]
[348435913,1736527848020,-500.0,0.00023287,3]
[348435915,1736527848030,-500.0,0.00023287,3]
[348435917,1736527848039,-500.0,0.00023287,3]
[348435919,1736527848049,-500.0,0.00023287,3]
[348435921,1736527848058,-531.16971749,0.00023287,3]
[348435923,1736527848068,-500.0,0.00023287,3]
[348435925,1736527848077,-500.0,0.00023287,3]
[348435927,1736527848087,-394.21203353,0.00023287,3]
[348435929,1736527848097,-7138.33,0.00023287,3]
[348435930,1736527848107,-500.0,0.00023287,3]
[348435932,1736527848116,-500.0,0.00023287,3]
[348435934,1736527848126,-841.63,0.00023287,3]
[348435936,1736527848136,-500.0,0.00023287,3]
[348435938,1736527848145,-500.0,0.00023287,3]
[348435940,1736527848154,-500.0,0.00023287,3]
[348435942,1736527848165,-4041.71,0.00023287,3]
[348435944,1736527848174,-500.0,0.00023287,3]
[348435946,1736527848185,-500.0,0.00023287,3]
[348435948,1736527848194,-500.0,0.00023287,3]
[348435950,1736527848204,-500.0,0.00023287,3]
[348435952,1736527848213,-500.0,0.00023287,3]
[348435954,1736527848223,-500.0,0.00023287,3]
[348435956,1736527848234,-737.56,0.00023287,3]
[348435958,1736527848243,-500.0,0.00023287,3]
[348435960,1736527848252,-567.64,0.00023287,3]
[348435962,1736527848262,-500.0,0.00023287,3]
[348435964,1736527848271,-500.0,0.00023287,3]
[348435966,1736527848280,-500.0,0.00023287,3]
[348435968,1736527848289,-500.0,0.00023287,3]
[348435970,1736527848299,-570.59,0.00023287,3]
[348435972,1736527848308,-1412.2,0.00023287,3]
[348435974,1736527848317,-500.0,0.00023287,3]
[348435976,1736527848327,-500.0,0.00023287,3]
[348435977,1736527848336,-506.17,0.00023287,3]
[348435979,1736527848346,-500.0,0.00023287,3]
[348435981,1736527848356,-500.0,0.00023287,3]
[348435983,1736527848365,-500.0,0.00023287,3]
[348435985,1736527848375,-500.0,0.00023287,3]
[348435987,1736527848384,-500.0,0.00023287,3]
[348435989,1736527848394,-523.16,0.00023287,3]
[348435991,1736527848403,-500.0,0.00023287,3]
[348435993,1736527848413,-594.07,0.00023287,3]
[348435995,1736527848422,-610.9009767,0.00023287,3]
[348435997,1736527848432,-999.08,0.00023287,3]
[348435999,1736527848441,-798.93,0.00023287,3]
[348436001,1736527848451,-760.94,0.00023287,3]
[348436003,1736527848460,-1375.42,0.00023287,3]
[348436005,1736527848471,-500.0,0.00023287,3]
[348436008,1736527848480,-510.15460416,0.00023287,3]
[348436009,1736527848489,-558.14,0.00023287,3]
[348436011,1736527848499,-500.0,0.00023287,3]
[348436013,1736527848510,-500.0,0.00023287,3]
[348436015,1736527848520,-500.0,0.00023287,3]
[348436017,1736527848530,-500.0,0.00023287,3]
[348436019,1736527848539,-1231.21,0.00023287,3]
[348436021,1736527848549,-500.0,0.00023287,3]
[348436023,1736527848559,-785.55,0.00023287,3]
[348436025,1736527848568,-500.0,0.00023287,3]
[348436027,1736527848578,-1449.04,0.00023287,3]
[348436029,1736527848587,-500.0,0.00023287,3]
[348436031,1736527848597,-500.0,0.00023287,3]
[348436033,1736527848607,-500.0,0.00023287,3]
[348436035,1736527848616,-500.0,0.00023287,3]
[348436037,1736527848626,-500.0,0.00023287,3]
[348436039,1736527848635,-687.61,0.00023287,3]
[348436041,1736527848644,-9734.87,0.00023287,3]
[348436043,1736527848654,-500.0,0.00023287,3]
[348436045,1736527848663,-500.0,0.00023287,3]
[348436047,1736527848673,-500.0,0.00023287,3]
[348436049,1736527848684,-1377.2,0.00023287,3]
[348436051,1736527848693,-500.0,0.00023287,3]
[348436053,1736527848703,-530.32049551,0.00023287,3]
[348436055,1736527848712,-795.27,0.00023287,3]
[348436057,1736527848722,-500.0,0.00023287,3]
[348436059,1736527848731,-500.0,0.00023287,3]
[348436061,1736527848741,-500.0,0.00023287,3]
[348436063,1736527848751,-500.0,0.00023287,3]
[348436065,1736527848760,-569.76,0.00023287,3]
[348436067,1736527848770,-870.05,0.00023287,3]
[348436069,1736527848780,-500.0,0.00023287,3]
[348436071,1736527848789,-500.0,0.00023287,3]
[348436073,1736527848799,-504.33567399,0.00023287,3]
[348436075,1736527848808,-718.43,0.00023287,3]
[348436077,1736527848818,-523.76,0.00023287,3]
[348436078,1736527848827,-500.0,0.00023287,3]
[348436081,1736527848837,-500.0,0.00023287,3]
[348436082,1736527848847,-1249.38,0.00023287,3]
[348436084,1736527848857,-500.0,0.00023287,3]
[348436087,1736527848866,-632.13205639,0.00023287,3]
[348436088,1736527848876,-500.0,0.00023287,3]
[348436090,1736527848886,-500.0,0.00023287,3]
[348436092,1736527848895,-500.0,0.00023287,3]
[348436095,1736527848905,-500.0,0.00023287,3]
[348436097,1736527848914,-1089.57,0.00023287,3]
[348436099,1736527848925,-500.0,0.00023287,3]
[348436101,1736527848938,-500.0,0.00023287,3]
[348436103,1736527848947,-500.0,0.00023287,3]
[348436105,1736527848957,-1097.85,0.00023287,3]
[348436107,1736527848966,-500.0,0.00023287,3]
[348436108,1736527848977,-500.0,0.00023287,3]
[348436111,1736527848987,-500.0,0.00023287,3]
[348436113,1736527848997,-500.0,0.00023287,3]
[348436115,1736527849007,-997.27,0.00023287,3]
[348436117,1736527849018,-592.59,0.00023287,3]
[348436118,1736527849027,-735.56,0.00023287,3]
[348436120,1736527849042,-651.69,0.00023287,3]
[348436122,1736527849051,-500.0,0.00023287,3]
[348436124,1736527849060,-500.0,0.00023287,3]
[348436126,1736527849069,-500.0,0.00023287,3]
[348436128,1736527849079,-500.0,0.00023287,3]
[348436130,1736527849088,-500.0,0.00023287,3]
[348436132,1736527849097,-500.0,0.00023287,3]
[348436135,1736527849107,-1868.2,0.00023287,3]
[348436136,1736527849116,-500.0,0.00023287,3]
[348436139,1736527849126,-500.0,0.00023287,3]
[348436141,1736527849135,-883.93,0.00023287,3]
[348436142,1736527849145,-500.0,0.00023287,3]
[348436144,1736527849154,-466.72441991,0.00023287,3]
[348436146,1736527849163,-3153.67,0.00023287,3]
[348436148,1736527849172,-500.0,0.00023287,3]
[348436150,1736527849183,-500.0,0.00023287,3]
[348436152,1736527849192,-150.23,0.00023287,3]
[348436154,1736527849201,-151.30178653,0.00023287,3]
[348436156,1736527849210,-550.55,0.00023287,3]
[348436158,1736527849220,-201.60595907,0.00023287,3]
[348436160,1736527849229,-500.0,0.00023287,3]
[348436162,1736527849239,-500.0,0.00023287,3]
[348436164,1736527849248,-500.0,0.00023287,3]
[348436165,1736527849258,-1783.22,0.00023287,2]
[348436167,1736527849267,-500.0,0.00023287,3]
[348436169,1736527849276,-500.0,0.00023287,3]
[348436171,1736527849285,-150.2,0.00023287,2]
[348436173,1736527849295,-861.35,0.00023287,3]
[348436175,1736527849304,-500.0,0.00023287,3]
[348436177,1736527849313,-500.0,0.00023287,3]
[348436179,1736527849322,-500.0,0.00023287,3]
[348436181,1736527849332,-500.0,0.00023287,3]
[348436183,1736527849341,-4947.78,0.00023287,3]
[348436185,1736527849350,-1451.95,0.00023287,3]
[348436187,1736527849360,-500.0,0.00023287,3]
[348436189,1736527849369,-500.0,0.00023287,3]
[348436191,1736527849379,-46502.3,0.00023287,3]
[348436193,1736527849388,-948.0,0.00023287,3]
[348436194,1736527849397,-500.0,0.00023287,3]
[348436196,1736527849407,-1931.44,0.00023287,3]
[348436198,1736527849416,-1310.93,0.00023287,2]
[348436200,1736527849426,-7971.81,0.00023287,3]
[348436202,1736527849435,-500.0,0.00023287,3]
[348436204,1736527849445,-500.0,0.00023287,3]
[348436206,1736527849454,-1851.49,0.00023287,3]
[348436208,1736527849464,-1188.78,0.00023287,3]
[348436210,1736527849473,-500.0,0.00023287,3]
[348436212,1736527849482,-643.14,0.00023287,3]
[348436213,1736527849492,-500.0,0.00023287,3]
[348436214,1736527849502,-500.0,0.00023287,3]
[348436215,1736527849512,-151.0,0.00023287,2]
[348436216,1736527849521,-1456.65,0.00023287,3]
[348436217,1736527849530,-500.0,0.00023287,3]
[348436218,1736527849539,-151.0,0.00023287,2]
[348436219,1736527849549,-500.0,0.00023287,3]
[348436220,1736527849559,-500.0,0.00023287,3]
[348436221,1736527849568,-500.0,0.00023287,3]
[348436222,1736527849577,-500.0,0.00023287,3]
[348436224,1736527849587,-500.0,0.00023287,3]
[348436226,1736527849597,-500.0,0.00023287,3]
[348436228,1736527849607,-500.0,0.00023287,3]
[348436230,1736527849617,-500.0,0.00023287,3]
[348436232,1736527849627,-500.0,0.00023287,3]
[348436249,1736527849783,-500.0,0.00023287,3]
[348436251,1736527849794,-500.0,0.00023287,3]
[348436253,1736527849803,-672.64,0.00023287,3]
[348436255,1736527849812,-1756.02,0.00023287,3]
[348436257,1736527849822,-500.0,0.00023287,3]
[348436259,1736527849831,-500.0,0.00023287,3]
[348436261,1736527849841,-600.44,0.00023287,3]
[348436263,1736527849851,-500.0,0.00023287,3]
[348436265,1736527849860,-517.46983912,0.00023287,3]
[348436267,1736527849870,-500.0,0.00023287,3]
[348436269,1736527849879,-654.9,0.00023287,3]
[348436271,1736527849889,-515.73,0.00023287,3]
[348436273,1736527849899,-3161.45,0.00023287,3]
[348436275,1736527849908,-500.0,0.00023287,3]
[348436277,1736527849918,-500.0,0.00023287,3]
[348436279,1736527849931,-3561.05,0.00023287,3]
[348436281,1736527849941,-1222.94,0.00023287,3]
[348436283,1736527849951,-721.69,0.00023287,3]
[348436285,1736527849961,-778.21,0.00023287,2]
[348436287,1736527849972,-1560.23,0.00023287,3]
[348436289,1736527849982,-1763.22,0.00023287,3]
[348436291,1736527849992,-698.96,0.00023287,3]
[348436293,1736527850001,-1421.79,0.00023287,3]
[348436295,1736527850011,-500.0,0.00023287,3]
[348436297,1736527850021,-562.09,0.00023287,3]
[348436299,1736527850031,-500.0,0.00023287,3]
[348436301,1736527850041,-1666.59,0.00023287,3]
[348436303,1736527850051,-960.21,0.00023287,3]
[348436305,1736527850060,-1197.79,0.00023287,3]
[348436307,1736527850069,-500.0,0.00023287,3]
[348436309,1736527850080,-500.0,0.00023287,3]
[348436311,1736527850089,-500.0,0.00023287,3]
[348436313,1736527850098,-713.71,0.00023287,3]
[348436315,1736527850109,-169.36695992,0.00023287,3]
[348436317,1736527850118,-2000.0,0.000233,2]
[348436319,1736527850127,-158.81,0.000233,31]
[348436321,1736527850136,-158.81,0.000233,31]
[348436323,1736527850146,-158.81,0.000233,31]
[348436325,1736527850157,-158.81,0.000233,31]
[348436327,1736527850166,-158.81,0.000233,31]
[348436329,1736527850176,-158.81,0.000233,31]
[348436331,1736527850187,-1000.0,0.00023321,2]
[348436333,1736527850196,-2711.02011582,0.00023325,2]
[348436335,1736527850205,-2711.02011582,0.00023376,2]
[348436337,1736527850215,-222.58071285,0.00023377,2]
[348436339,1736527850224,-150.0,0.00023408,2]
[348436341,1736527850233,-443.18766825,0.00023473,2]
[348436343,1736527850242,-517.76684796,0.00023473,2]
[348436344,1736527850252,-500.99679196,0.00023473,2]
[348436346,1736527850261,-500.0,0.00023473,2]
[348436349,1736527850271,-557.97289242,0.00023473,2]
[348436350,1736527850281,-500.0,0.00023473,2]